bitfinex/quotes_SOLUSD_20250212
["timestamp","ask_amount","ask_price","bid_price","bid_amount"]
[1739344475452,0.03,194.87,194.86,35.27785391]
[1739344476030,0.03,194.87,194.86,48.94068244]
[1739344485057,0.0001,194.87,194.86,49.06617244]
[1739344485263,0.03,194.93,194.9,20.25098]
[1739344485448,0.03,194.93,194.92,23.80888244]
[1739344486455,0.03,194.93,194.92,28.93918244]
[1739344491379,0.03,194.93,194.91,10.14605391]
[1739344492786,0.03,194.93,194.91,15.27655391]
[1739344495876,0.03,194.93,194.91,10.14605391]
[1739344496812,0.03,194.93,194.9,10.14605391]
[1739344496992,0.03,194.93,194.89,15.27705391]
[1739344497487,0.03,194.93,194.92,20.0]
[1739344499193,0.03,194.93,194.89,15.27705391]
[1739344500594,0.03,194.93,194.9,0.063]
[1739344500768,0.03,194.93,194.9,10.20905391]
[1739344501093,0.03,194.93,194.91,10.14605391]
[1739344502000,0.03,194.93,194.9,0.063]
[1739344503574,11.82915391,194.93,194.9,20.063]
[1739344504479,84.2521,194.92,194.9,0.063]
[1739344504705,10.14605391,194.91,194.9,0.063]
[1739344504892,16.60375391,194.91,194.9,0.063]
[1739344505874,18.65595391,194.91,194.9,0.063]
[1739344506080,16.60375391,194.91,194.9,0.063]
[1739344507396,18.65595391,194.91,194.9,0.063]
[1739344508606,18.78144391,194.91,194.9,0.063]
[1739344509786,16.60375391,194.91,194.9,0.063]
[1739344514517,10.14605391,194.92,194.9,0.063]
[1739344514690,11.82915391,194.93,194.9,0.063]
[1739344515018,0.03,194.93,194.9,0.063]
[1739344515614,0.03,194.93,194.92,30.14605391]
[1739344517417,0.03,194.93,194.92,35.27635391]
[1739344519518,0.03,194.93,194.9,0.063]
[1739344520490,82.2,194.92,194.91,20.0]
[1739344520686,86.02,194.92,194.91,20.0]
[1739344521292,86.02,194.92,194.91,35.27655391]
[1739344521487,82.2,194.92,194.91,35.27655391]
[1739344523713,82.2,194.92,194.91,48.93938244]
[1739344524433,0.03,194.93,194.92,13.66282853]
[1739344524727,0.03,194.93,194.92,23.80888244]
[1739344525095,0.03,194.93,194.92,28.93918244]
[1739344527026,0.03,194.93,194.92,15.27635391]
[1739344527198,0.03,194.93,194.91,5.1305]
[1739344527398,0.03,194.93,194.9,0.063]
[1739344527712,0.03,194.93,194.92,20.0]
[1739344528417,0.03,194.93,194.9,0.063]
[1739344528809,0.03,194.93,194.91,20.0]
[1739344529696,0.03,194.93,194.91,15.81955859]
[1739344531711,0.03,194.93,194.91,40.95005859]
[1739344532022,0.03,194.93,194.91,25.1305]
[1739344532408,0.03,194.93,194.91,20.0]
[1739344532828,15.84955859,194.93,194.91,20.0]
[1739344533726,98.01955859,194.92,194.9,0.063]
[1739344533908,98.01955859,194.91,194.9,0.063]
[1739344534107,15.81955859,194.91,194.9,0.063]
[1739344535935,17.87175859,194.91,194.9,0.063]
[1739344536808,15.81955859,194.91,194.9,0.063]
[1739344537325,15.81955859,194.92,194.9,0.063]
[1739344537531,15.84955859,194.93,194.9,0.063]
[1739344538132,0.03,194.93,194.9,0.063]
[1739344540635,15.84955859,194.93,194.9,0.063]
[1739344540836,15.81955859,194.91,194.9,0.063]
[1739344541339,17.87175859,194.91,194.9,0.063]
[1739344542350,17.99724859,194.91,194.9,0.063]
[1739344544840,17.87175859,194.91,194.9,0.063]
[1739344548731,15.81955859,194.91,194.9,0.063]
[1739344551053,17.87175859,194.91,194.9,0.063]
[1739344554853,15.81955859,194.91,194.9,0.063]
[1739344555735,17.87175859,194.91,194.9,0.063]
[1739344556454,17.99724859,194.91,194.9,0.063]
[1739344556625,34.81680718,194.91,194.9,0.063]
[1739344557330,33.81680718,194.91,194.9,0.063]
[1739344557529,34.81680718,194.91,194.9,0.063]
[1739344557858,67.39192388,194.91,194.9,0.063]
[1739344559155,0.12549,194.85,194.79,0.063]
[1739344559325,10.13537907,194.8,194.79,0.063]
[1739344559746,15.84521961,194.8,194.79,0.063]
[1739344561153,33.86922922,194.8,194.79,0.063]
[1739344563552,15.84521961,194.8,194.79,0.063]
[1739344565440,15.84521961,194.82,194.79,0.063]
[1739344566552,20.12060157,194.83,194.79,0.063]
[1739344566877,20.12060157,194.83,194.79,35.90821961]
[1739344567444,20.12060157,194.83,194.79,25.1965]
[1739344567671,15.84521961,194.81,194.79,0.063]
[1739344567871,15.84521961,194.8,194.79,0.063]
[1739344568353,15.84521961,194.81,194.79,0.063]
[1739344568554,15.84521961,194.82,194.79,0.063]
[1739344570964,82.2,194.8,194.79,0.063]
[1739344574379,98.04521961,194.8,194.79,0.063]
[1739344574558,100.09851961,194.8,194.79,0.063]
[1739344574874,17.89851961,194.8,194.79,0.063]
[1739344575974,18.02400961,194.8,194.79,0.063]
[1739344576152,33.86922922,194.8,194.79,0.063]
[1739344576558,18.02400961,194.8,194.79,0.063]
[1739344577662,15.84521961,194.8,194.79,0.063]
[1739344579169,33.86922922,194.8,194.79,0.063]
[1739344580961,49.53205775,194.8,194.79,0.063]
[1739344581160,0.12549,194.77,194.74,0.063]
[1739344581388,15.97070961,194.75,194.74,0.063]
[1739344581901,18.02460961,194.75,194.74,0.063]
[1739344587688,32.68743814,194.75,194.74,0.063]
[1739344587992,31.68743814,194.75,194.74,0.063]
[1739344588703,32.68743814,194.75,194.74,0.063]
[1739344589197,31.68743814,194.75,194.74,0.063]
[1739344589401,32.68743814,194.75,194.74,0.063]
[1739344589696,31.68743814,194.75,194.74,0.063]
[1739344591998,32.68743814,194.75,194.74,0.063]
[1739344593807,31.68743814,194.75,194.74,0.063]
[1739344594101,18.02460961,194.75,194.74,0.063]
[1739344594678,15.84521961,194.75,194.74,0.063]
[1739344595289,15.84521961,194.76,194.74,0.063]
[1739344595483,15.84521961,194.77,194.74,0.063]
[1739344595676,33.45420729,194.78,194.74,0.063]
[1739344596080,17.60898768,194.78,194.74,0.063]
[1739344596893,17.60898768,194.78,194.74,15.90821961]
[1739344598106,17.60898768,194.78,194.74,21.04301961]
[1739344598403,17.60898768,194.78,194.74,0.063]
[1739344599589,17.60898768,194.78,194.74,15.90821961]
[1739344599908,99.80898768,194.78,194.76,35.84521961]
[1739344600079,99.80898768,194.78,194.77,15.84521961]
[1739344600286,99.80898768,194.78,194.77,22.15001961]
[1739344602015,17.60898768,194.78,194.77,11.439]
[1739344603091,17.60898768,194.78,194.77,6.3048]
[1739344603998,17.60898768,194.78,194.77,11.439]
[1739344604910,17.60898768,194.78,194.77,6.3048]
[1739344605706,17.60898768,194.78,194.77,11.439]
[1739344607129,17.60898768,194.78,194.77,27.28421961]
[1739344607929,17.60898768,194.78,194.77,40.94704814]
[1739344608122,0.03,194.79,194.77,40.94704814]
[1739344608324,0.03,194.79,194.78,31.03124814]
[1739344609505,0.0001,194.79,194.78,36.16514814]
[1739344624145,0.0001,194.79,194.78,20.97911961]
[1739344624620,0.0001,194.79,194.78,5.1339]
[1739344625129,0.0001,194.79,194.78,20.97911961]
[1739344626151,0.0001,194.79,194.78,34.64194814]
[1739344627547,0.0001,194.79,194.78,35.89292814]
[1739344627721,0.0001,194.79,194.78,52.73814775]
[1739344627921,0.0001,194.79,194.78,60.41974775]
[1739344629329,82.2,194.89,194.82,20.0]
[1739344629535,86.02,194.88,194.86,15.84521961]
[1739344629833,82.2,194.87,194.86,20.97691961]
[1739344632526,82.2,194.87,194.85,20.97721961]
[1739344635749,0.03,194.88,194.86,29.50804814]
[1739344635940,0.03,194.88,194.87,29.50804814]
[1739344636657,82.23,194.9,194.89,20.0]
[1739344636832,82.23,194.9,194.89,29.50804814]
[1739344636833,0.03,194.9,194.89,29.50804814]
[1739344638763,0.03,194.9,194.89,34.63904814]
[1739344642153,0.03,194.93,194.92,33.66282853]
[1739344642355,0.03,194.93,194.92,49.50804814]
[1739344643156,0.03,194.93,194.92,54.63834814]
[1739344645665,0.03,194.96,194.93,14.66282853]
[1739344645836,0.03,194.96,194.94,29.50804814]
[1739344646569,0.0001,194.96,194.95,13.78831853]
[1739344646744,0.0001,194.96,194.95,29.63353814]
[1739344648068,0.0001,194.96,194.95,34.76303814]
[1739344648765,0.0001,194.98,194.97,34.66282853]
[1739344648943,0.0001,194.98,194.97,50.50804814]
[1739344649536,0.0001,194.99,194.98,13.66282853]
[1739344649749,0.0001,194.99,194.98,30.50804814]
[1739344650262,0.0001,195.0,194.99,14.78831853]
[1739344650467,0.0001,195.0,194.99,46.47875775]
[1739344651747,0.0001,195.0,194.99,47.60424775]
[1739344651983,0.0001,195.0,194.99,46.60424775]
[1739344652369,0.0001,195.0,194.99,51.73264775]
[1739344652568,0.0001,195.0,194.99,51.60715775]
[1739344653046,0.0001,195.0,194.99,35.76193814]
[1739344653246,0.0001,195.0,194.99,51.60715775]
[1739344654468,0.0001,195.0,194.99,35.76193814]
[1739344654761,0.0001,195.0,194.99,34.63644814]
[1739344655675,0.0001,195.0,194.99,28.90128062]
[1739344656176,0.0001,195.0,194.99,28.96428062]
[1739344656465,0.0001,195.0,194.99,15.30145209]
[1739344656655,0.0001,195.0,194.99,28.96428062]
[1739344657750,82.23,195.07,195.03,21.0]
[1739344657751,0.03,195.07,195.03,21.0]
[1739344657971,0.03,195.07,195.04,1.0]
[1739344658273,0.03,195.07,195.05,13.66282853]
[1739344658456,0.03,195.07,195.06,5.1266]
[1739344659046,0.03,195.07,195.06,28.89948062]
[1739344659871,0.03,195.07,195.06,34.57190136]
[1739344660358,0.03,195.07,195.06,20.90907283]
[1739344661950,0.03,195.07,195.06,34.57190136]
[1739344664681,0.0001,195.07,195.06,34.57190136]
[1739344666367,0.0001,195.07,195.06,20.90907283]
[1739344666860,0.0001,195.07,195.06,15.78247283]
[1739344667064,0.0001,195.07,195.05,20.90927283]
[1739344667753,0.0001,195.07,195.06,15.78247283]
[1739344667953,0.0001,195.07,195.05,20.90927283]
[1739344668366,0.0001,195.07,195.05,15.78247283]
[1739344668574,0.0001,195.07,195.06,15.78247283]
[1739344670065,0.0001,195.07,195.06,20.90907283]
[1739344670460,0.0001,195.07,195.06,34.57190136]
[1739344672988,0.0001,195.07,195.06,15.78247283]
[1739344673153,0.0001,195.07,195.04,20.90957283]
[1739344673586,0.0001,195.07,195.06,20.0]
[1739344673764,0.0001,195.07,195.04,20.90957283]
[1739344674166,0.0001,195.07,195.06,20.0]
[1739344674768,0.0001,195.07,195.06,25.1266]
[1739344675381,0.0001,195.07,195.06,40.90907283]
[1739344677677,0.0001,195.07,195.06,54.57190136]
[1739344683580,0.0001,195.07,195.06,48.89571805]
[1739344685084,0.0001,195.07,195.06,35.23288952]
[1739344685764,0.0001,195.07,195.06,48.89571805]
[1739344687265,0.0001,195.07,195.06,35.23288952]
[1739344687965,0.0001,195.07,195.06,25.1266]
[1739344688159,0.0001,195.07,195.06,35.23288952]
[1739344688895,0.0001,195.07,195.06,48.89571805]
[1739344689784,0.0001,195.08,195.07,13.66282853]
[1739344689955,0.0001,195.08,195.07,23.76911805]
[1739344691690,0.0001,195.08,195.07,28.89541805]
[1739344693985,10.10628952,195.18,195.07,28.89541805]
[1739344693986,82.2,195.19,195.13,20.0]
[1739344694287,86.0,195.18,195.14,10.10628952]
[1739344694495,82.2,195.18,195.13,10.35726952]
[1739344695874,82.2,195.18,195.14,5.1245]
[1739344697178,92.30628952,195.18,195.13,5.1247]
[1739344697997,82.2,195.18,195.13,5.1247]
[1739344698506,82.2,195.18,195.13,28.64283805]
[1739344698669,82.2,195.17,195.13,28.64283805]
[1739344700193,82.2,195.17,195.14,10.10628952]
[1739344700676,82.2,195.17,195.15,10.10628952]
[1739344701182,82.2,195.17,195.16,5.124]
[1739344701700,82.23,195.2,195.16,28.89311805]
[1739344701872,82.23,195.2,195.17,10.10628952]
[1739344702575,82.23,195.2,195.19,20.0]
[1739344702778,82.23,195.2,195.19,30.10628952]
[1739344703012,82.23,195.2,195.19,43.76911805]
[1739344703183,0.03,195.2,195.19,43.76911805]
[1739344703391,0.03,195.2,195.19,48.89231805]
[1739344704073,0.03,195.2,195.19,30.10628952]
[1739344704278,0.03,195.2,195.19,20.0]
[1739344704608,10.13628952,195.2,195.12,10.10628952]
[1739344704900,82.2,195.19,195.16,20.0]
[1739344705085,86.0,195.18,195.16,20.0]
[1739344705276,82.2,195.17,195.13,10.10628952]
[1739344705475,82.2,195.17,195.12,28.89401805]
[1739344706592,82.2,195.16,195.14,20.0]
[1739344706905,3.8,195.15,195.14,20.0]
[1739344707681,3.8,195.15,195.14,30.10628952]
[1739344708001,82.2,195.16,195.14,30.10628952]
[1739344708297,82.2,195.16,195.15,10.10628952]
[1739344708485,82.2,195.16,195.14,35.23068952]
[1739344710288,82.2,195.16,195.12,5.1249]
[1739344712376,82.2,195.16,195.12,10.10628952]
[1739344713102,82.2,195.16,195.14,20.0]
[1739344713310,3.8,195.15,195.14,20.0]
[1739344713607,3.8,195.15,195.14,30.10628952]
[1739344713803,82.2,195.16,195.14,30.10628952]
[1739344714187,82.2,195.16,195.15,10.10628952]
[1739344714579,82.2,195.16,195.15,5.1242]
[1739344714902,1.5144,195.14,195.1,0.063]
[1739344715707,10.10628952,195.11,195.1,0.063]
[1739344716689,10.10628952,195.12,195.1,0.063]
[1739344717594,15.7938523,195.12,195.1,0.063]
[1739344718411,15.7938523,195.13,195.1,0.063]
[1739344718908,17.3082523,195.14,195.1,0.063]
[1739344719909,15.7938523,195.13,195.1,0.063]
[1739344720296,15.7938523,195.12,195.1,0.063]
[1739344720910,15.7938523,195.11,195.1,0.063]
[1739344721911,21.9179523,195.12,195.1,0.063]
[1739344722305,15.7938523,195.11,195.1,0.063]
[1739344723815,17.8439523,195.11,195.1,0.063]
[1739344724114,15.7938523,195.11,195.1,0.063]
[1739344724697,21.9179523,195.12,195.1,0.063]
[1739344725511,15.7938523,195.13,195.1,0.063]
[1739344726011,17.3082523,195.14,195.1,0.063]
[1739344726402,15.7938523,195.12,195.1,0.063]
[1739344727218,15.7938523,195.13,195.1,0.063]
[1739344727715,15.7938523,195.15,195.1,0.063]
[1739344729209,15.7938523,195.14,195.1,0.063]
[1739344731725,15.8238523,195.16,195.1,0.063]
[1739344732821,15.8238523,195.16,195.1,5.1885]
[1739344733121,15.7938523,195.14,195.1,0.063]
[1739344733321,0.03,195.16,195.13,15.7938523]
[1739344733516,0.03,195.16,195.15,15.7938523]
[1739344736022,0.03,195.16,195.14,20.9182523]
[1739344736731,0.03,195.16,195.15,15.7938523]
[1739344738329,0.03,195.16,195.12,20.0]
[1739344738528,0.03,195.16,195.14,20.0]
[1739344738740,0.03,195.16,195.15,20.0]
[1739344740924,0.03,195.16,195.11,15.7938523]
[1739344740925,82.2,195.15,195.11,15.7938523]
[1739344741124,82.2,195.14,195.11,15.7938523]
[1739344741514,82.2,195.14,195.13,20.0]
[1739344741720,86.0,195.14,195.13,20.0]
[1739344745741,86.0,195.14,195.13,25.1247]
[1739344745917,82.2,195.14,195.13,20.0]
[1739344746739,82.2,195.14,195.13,40.9185523]
[1739344747444,0.03,195.16,195.14,0.25098]
[1739344747641,0.03,195.16,195.15,29.45668083]
[1739344749632,0.03,195.16,195.15,34.58088083]
[1739344750847,0.0001,195.16,195.15,34.58088083]
[1739344751532,0.0001,195.16,195.15,20.9180523]
[1739344751826,0.0001,195.16,195.15,34.58088083]
[1739344754225,0.0001,195.16,195.15,34.70637083]
[1739344756322,0.0001,195.16,195.15,34.58088083]
[1739344761427,0.0001,195.16,195.15,34.70637083]
[1739344761924,0.0001,195.16,195.15,34.76937083]
[1739344763233,0.0001,195.16,195.15,35.76937083]
[1739344763553,0.0001,195.16,195.15,34.64388083]
[1739344771179,0.03,195.2,195.15,35.76937083]
[1739344771389,0.03,195.27,195.22,0.25098]
[1739344771550,0.03,195.27,195.26,16.0448323]
[1739344771871,1.6428,195.36,195.31,20.0]
[1739344772179,0.03,195.36,195.35,20.0]
[1739344772668,0.03,195.36,195.31,13.41184853]
[1739344772669,0.03,195.36,195.33,0.12549]
[1739344773071,0.03,195.36,195.34,0.12549]
[1739344773377,0.03,195.36,195.31,15.7938523]
[1739344773545,0.03,195.36,195.31,20.9136523]
[1739344774453,0.03,195.36,195.32,15.7938523]
[1739344775355,0.03,195.36,195.34,15.7938523]
[1739344775560,0.03,195.36,195.35,15.7938523]
[1739344776151,0.03,195.36,195.34,15.7938523]
[1739344776366,0.03,195.36,195.33,20.9133523]
[1739344776548,0.03,195.36,195.33,15.7938523]
[1739344776748,0.03,195.36,195.31,5.1199]
[1739344776749,0.03,195.36,195.34,35.7938523]
[1739344777086,0.03,195.36,195.34,20.0]
[1739344778557,0.03,195.36,195.34,15.7938523]
[1739344778763,0.03,195.36,195.35,15.7938523]
[1739344781459,0.03,195.36,195.34,15.7938523]
[1739344781782,0.03,195.36,195.35,15.7938523]
[1739344785467,0.03,195.36,195.35,16.0448323]
[1739344785670,0.03,195.36,195.35,29.45668083]
[1739344787570,0.03,195.36,195.35,15.7938523]
[1739344789868,82.2,195.44,195.39,20.0]
[1739344790064,82.2,195.43,195.42,20.0]
[1739344791210,82.2,195.43,195.42,40.9109523]
[1739344791502,1.6183,195.5,195.43,0.25098]
[1739344791503,82.2,195.49,195.43,0.25098]
[1739344791700,82.2,195.49,195.48,15.7938523]
[1739344793097,82.2,195.49,195.48,20.9094523]
[1739344793496,82.23,195.56,195.48,21.1604323]
[1739344793793,82.23,195.56,195.55,15.7938523]
[1739344794100,82.23,195.56,195.53,15.7938523]
[1739344794405,82.23,195.56,195.54,15.7938523]
[1739344795404,82.23,195.56,195.51,15.7938523]
[1739344796598,98.0238523,195.56,195.49,15.7938523]
[1739344796983,15.7938523,195.55,195.49,15.7938523]
[1739344797181,15.7938523,195.54,195.48,35.7938523]
[1739344797700,15.7938523,195.49,195.37,6.1207]
[1739344797900,15.7938523,195.48,195.42,15.7938523]
[1739344798112,8.242,195.49,195.44,15.7938523]
[1739344798777,1.6183,195.49,195.47,15.7938523]
[1739344799705,1.6183,195.49,195.46,15.7938523]
[1739344799894,1.6183,195.49,195.45,15.7938523]
[1739344802182,1.6183,195.49,195.46,15.7938523]
[1739344802422,2.0458,195.52,195.46,15.7938523]
[1739344802911,15.7938523,195.47,195.39,15.7938523]
[1739344803129,15.7938523,195.46,195.42,20.0]
[1739344803404,15.7938523,195.47,195.42,20.0]
[1739344803598,15.7938523,195.49,195.42,35.7938523]
[1739344803804,100.0398523,195.51,195.44,15.7938523]
[1739344804008,15.7938523,195.5,195.43,15.7938523]
[1739344804211,15.7938523,195.49,195.42,35.7938523]
[1739344804510,85.246,195.51,195.42,20.0]
[1739344804511,15.7938523,195.48,195.42,20.0]
[1739344804806,97.9938523,195.47,195.4,15.7938523]
[1739344805620,15.7938523,195.46,195.39,15.7938523]
[1739344805914,97.9938523,195.45,195.37,20.9121523]
[1739344806099,97.9938523,195.45,195.38,15.7938523]
[1739344806298,82.2,195.45,195.4,35.7938523]
[1739344806627,15.7938523,195.41,195.34,5.1192]
[1739344806834,15.7938523,195.39,195.37,20.0]
[1739344807033,15.7938523,195.41,195.37,20.0]
[1739344807323,15.7938523,195.39,195.37,20.0]
[1739344807522,15.7938523,195.38,195.37,20.0]
[1739344808032,15.7938523,195.38,195.36,20.0]
[1739344808203,15.7938523,195.37,195.36,20.0]
[1739344808515,15.7938523,195.39,195.36,20.0]
[1739344809023,15.7938523,195.37,195.31,5.1199]
[1739344809183,15.7938523,195.38,195.31,20.9137523]
[1739344809391,15.7938523,195.37,195.35,20.0]
[1739344810319,15.7938523,195.37,195.34,20.0]
[1739344810692,15.7938523,195.37,195.31,20.9137523]
[1739344810894,15.7938523,195.37,195.34,20.0]
[1739344811110,15.7938523,195.38,195.34,20.0]
[1739344811413,15.7938523,195.37,195.34,20.0]
[1739344811797,15.7938523,195.38,195.34,20.0]
[1739344811993,15.7938523,195.37,195.34,20.0]
[1739344812193,15.7938523,195.35,195.29,5.1203]
[1739344812388,15.7938523,195.32,195.27,5.1839]
[1739344812820,15.7938523,195.32,195.27,0.063]
[1739344813188,15.7938523,195.33,195.27,5.1841]
[1739344813504,97.9938523,195.35,195.29,15.7938523]
[1739344813889,15.7938523,195.34,195.28,15.7938523]
[1739344814091,15.7938523,195.32,195.27,0.063]
[1739344814816,15.7938523,195.32,195.28,20.0]
[1739344815019,82.2,195.33,195.28,20.0]
[1739344815221,82.2,195.33,195.32,15.7938523]
[1739344815393,82.2,195.39,195.32,15.7938523]
[1739344815593,82.2,195.39,195.36,15.7938523]
[1739344815895,82.2,195.39,195.38,15.7938523]
[1739344816920,82.2,195.39,195.37,15.7938523]
[1739344817609,82.2,195.39,195.37,25.18860902]
[1739344817917,82.2,195.39,195.38,45.18860902]
[1739344818118,27.23500902,195.46,195.38,45.18860902]
[1739344818119,82.2,195.45,195.38,50.30680902]
[1739344818293,82.2,195.45,195.41,25.18860902]
[1739344818616,82.2,195.45,195.4,25.18860902]
[1739344819322,82.2,195.45,195.4,30.30620902]
[1739344820500,82.2,195.45,195.4,25.18860902]
[1739344820700,84.2465,195.45,195.39,25.18860902]
[1739344820900,109.43510902,195.45,195.38,25.18860902]
[1739344821940,109.43510902,195.45,195.37,25.18860902]
[1739344822113,25.18860902,195.43,195.36,25.18860902]
[1739344822423,82.2,195.42,195.36,25.18860902]
[1739344822628,82.2,195.41,195.37,25.18860902]
[1739344822921,82.2,195.41,195.39,25.18860902]
[1739344823725,82.2,195.41,195.4,25.18860902]
[1739344824429,82.2,195.41,195.4,30.30630902]
[1739344824799,82.2,195.41,195.39,25.18860902]
[1739344825441,82.2,195.41,195.4,25.18860902]
[1739344826741,82.2,195.41,195.4,30.30630902]
[1739344827028,2.0461,195.5,195.4,30.30630902]
[1739344827029,82.2,195.47,195.4,30.30630902]
[1739344827234,82.2,195.49,195.43,25.18860902]
[1739344828335,82.2,195.48,195.47,25.18860902]
[1739344828750,82.2,195.48,195.47,30.30440902]
[1739344830353,82.2,195.54,195.47,30.30440902]
[1739344830552,82.2,195.54,195.49,25.18860902]
[1739344830853,82.2,195.54,195.5,45.18860902]
[1739344831035,82.2,195.54,195.5,20.0]
[1739344831361,82.2,195.54,195.5,45.18860902]
[1739344831663,82.2,195.54,195.51,25.18860902]
[1739344832342,82.2,195.54,195.49,25.18860902]
[1739344833361,109.43420902,195.54,195.48,25.18860902]
[1739344833660,107.38860902,195.54,195.48,25.18860902]
[1739344833959,107.38860902,195.54,195.47,25.18860902]
[1739344833960,109.43420902,195.54,195.47,25.18860902]
[1739344834136,25.18860902,195.51,195.44,25.18860902]
[1739344834338,25.18860902,195.51,195.47,20.0]
[1739344834537,25.18860902,195.52,195.47,20.0]
[1739344834737,25.18860902,195.52,195.46,25.18860902]
[1739344835139,82.2,195.51,195.46,25.18860902]
[1739344835648,82.2,195.51,195.47,45.18860902]
[1739344836549,82.2,195.51,195.46,25.18860902]
[1739344836740,84.2459,195.51,195.45,45.18860902]
[1739344837435,82.2,195.51,195.45,45.18860902]
[1739344837636,82.2,195.51,195.45,50.30490902]
[1739344837859,82.2,195.51,195.46,25.18860902]
[1739344838541,82.2,195.51,195.46,30.30450902]
[1739344838859,82.2,195.51,195.47,25.18860902]
[1739344839438,82.2,195.51,195.47,30.30430902]
[1739344839763,82.2,195.51,195.5,15.72577204]
[1739344840263,82.2,195.51,195.49,15.72577204]
[1739344840668,0.03,195.54,195.5,15.72577204]
[1739344841640,0.03,195.54,195.51,15.72577204]
[1739344843154,0.03,195.54,195.5,15.72577204]
[1739344843553,0.03,195.54,195.48,15.72577204]
[1739344843753,15.72577204,195.52,195.45,15.72577204]
[1739344843941,82.2,195.51,195.45,20.84207204]
[1739344844144,82.2,195.51,195.46,15.72577204]
[1739344844863,82.2,195.51,195.47,15.72577204]
[1739344845175,82.2,195.51,195.5,15.72577204]
[1739344846363,82.2,195.51,195.5,20.84077204]
[1739344846967,82.2,195.51,195.46,15.72577204]
[1739344847660,82.2,195.51,195.47,15.72577204]
[1739344848054,82.2,195.51,195.48,15.72577204]
[1739344848259,82.2,195.51,195.49,15.72577204]
[1739344848461,82.2,195.51,195.5,15.72577204]
[1739344848650,0.03,195.54,195.49,15.72577204]
[1739344848974,15.72577204,195.53,195.47,15.72577204]
[1739344849344,15.72577204,195.52,195.46,15.72577204]
[1739344849556,82.2,195.51,195.45,15.72577204]
[1739344849758,82.2,195.51,195.5,15.72577204]
[1739344849962,0.03,195.54,195.5,15.72577204]
[1739344850172,0.03,195.54,195.53,15.72577204]
[1739344851571,0.03,195.54,195.51,15.72577204]
[1739344853876,0.03,195.54,195.52,15.72577204]
[1739344854261,0.03,195.54,195.51,15.72577204]
[1739344856482,0.03,195.54,195.52,15.72577204]
[1739344856847,0.03,195.54,195.49,15.72577204]
[1739344857563,0.03,195.54,195.49,20.84097204]
[1739344857760,0.03,195.54,195.49,15.72577204]
[1739344857952,15.75577204,195.54,195.48,15.72577204]
[1739344858490,0.03,195.54,195.48,15.72577204]
[1739344858988,99.97147204,195.53,195.46,15.72577204]
[1739344859166,82.2,195.52,195.46,15.72577204]
[1739344860195,82.2,195.52,195.47,15.72577204]
[1739344860694,82.2,195.52,195.48,15.72577204]
[1739344861064,82.2,195.52,195.47,15.72577204]
[1739344861788,99.97167204,195.52,195.46,15.72577204]
[1739344861995,82.2,195.51,195.45,35.72577204]
[1739344862286,15.72577204,195.5,195.43,15.72577204]
[1739344862484,15.72577204,195.5,195.43,20.84257204]
[1739344863199,15.72577204,195.48,195.41,20.84297204]
[1739344864169,97.92577204,195.47,195.41,15.72577204]
[1739344865097,97.92577204,195.46,195.4,15.72577204]
[1739344865280,15.72577204,195.42,195.36,0.063]
[1739344865676,15.72577204,195.42,195.36,5.1817]
[1739344865884,15.72577204,195.42,195.36,20.90747204]
[1739344866283,15.72577204,195.42,195.36,15.78877204]
[1739344866468,17.77257204,195.42,195.36,15.78877204]
[1739344866792,15.72577204,195.42,195.36,15.78877204]
[1739344866966,15.72577204,195.48,195.41,15.72577204]
[1739344867294,15.72577204,195.49,195.42,15.72577204]
[1739344867491,82.2,195.48,195.42,15.72577204]
[1739344867892,97.92577204,195.48,195.42,15.72577204]